Workbook

Sheet Образец
A1: 0 | B1: Товарный чек № от
B2: Отпущен товар за наличный расчет на сумму: | D2: =SUM(E:E) -> 0
B3: Скидка составила: | D3: =ROUNDUP(D2*A1/100,0) -> 0
B4: Стоймость доставки: | D4: 0
B5: Предоплата: | D5: 0
B6: Задолженность: | D6: 0
B7: Итого к оплате: | D7: =D2+D4+D6-D3-D5 -> 0
B8: Количество мест:
A9: № | B9: Наименование | C9: кол | D9: цена | E9: сумма

Sheet окс
A1: 0 | B1: Товарный чек № от
B2: Отпущен товар за наличный расчет на сумму: | D2: =SUM(E:E) -> 0
B3: Скидка составила: | D3: =ROUNDUP(D2*A1/100,0) -> 0
B4: Стоймость доставки: | D4: 0
B5: Предоплата: | D5: 0
B6: Задолженность: | D6: 0
B7: Итого к оплате: | D7: =D2+D4+D6-D3-D5 -> 0
B8: Количество мест:
A9: № | B9: Наименование | C9: кол | D9: цена | E9: сумма

Sheet про
A1: 0 | B1: Товарный чек № от
B2: Отпущен товар за наличный расчет на сумму: | D2: =SUM(E:E) -> 5016
B3: Скидка составила: | D3: =ROUNDUP(D2*A1/100,0) -> 0
B4: Стоймость доставки: | D4: 0
B5: Предоплата: | D5: 0
B6: Задолженность: | D6: 0
B7: Итого к оплате: | D7: =D2+D4+D6-D3-D5 -> 5016
B8: Количество мест:
A9: № | B9: Наименование | C9: кол | D9: цена | E9: сумма
A10: 6 | B10: ..СЧЕТ-Компрессор AZARD 580 | C10: 1 | D10: 1164 | E10: =D10*C10 -> 1164
A11: 6 | B11: ..СЧЕТ-Освежитель воздуха на дефлектор CITY STYLE Moskow | C11: 1 | D11: 232 | E11: 232
A12: 6 | B12: ..СЧЕТ-Освежитель воздуха на дефлектор RICH casino | C12: 1 | D12: 292 | E12: 292
A13: 6 | B13: ..СЧЕТ-Освежитель воздуха на дефлектор RICH originals | C13: 1 | D13: 233 | E13: 233
A14: 6 | B14: ..СЧЕТ-Освежитель воздуха на панель AIR ISLAND-футляр ваниль | C14: 1 | D14: 141 | E14: 141
A15: 6 | B15: ..СЧЕТ-Освежитель воздуха на панель DEEP AQUA водяные брызги | C15: 1 | D15: 176 | E15: 176
A16: 6 | B16: ..СЧЕТ-Освежитель воздуха на панель NANO водяные брызги | C16: 1 | D16: 198 | E16: 198
A17: 6 | B17: ..СЧЕТ-Освежитель воздуха подвесной VOYAGE сухой мальдивы | C17: 1 | D17: 31 | E17: 31
A18: 6 | B18: ..СЧЕТ-Освежитель воздуха подвесной СМАЙЛ сухой черный лед | C18: 1 | D18: 22 | E18: 22
A19: 6 | B19: ..СЧЕТ-Освежитель воздуха-подвеска DISCOBALL секси герл | C19: 1 | D19: 182 | E19: 182
A20: 17 | B20: Коврики салонные 2121 резин. АВТОВАЗ | C20: 1 | D20: 883 | E20: 883
A21: 16 | B21: Коврики салонные 2170 резин. БРТ | C21: 1 | D21: 550 | E21: 550
A22: 23 | B22: Щетка стеклоочистителя 50см CARALL бескаркасная S950 | C22: 6 | D22: 113 | E22: 678
A23: 23 | B23: Щетка стеклоочистителя 61см CARALL бескаркасная S950 | C23: 2 | D23: 117 | E23: 234

Sheet вел
A1: 0 | B1: Товарный чек № от
B2: Отпущен товар за наличный расчет на сумму: | D2: =SUM(E:E) -> 0
B3: Скидка составила: | D3: =ROUNDUP(D2*A1/100,0) -> 0
B4: Стоймость доставки: | D4: 0
B5: Предоплата: | D5: 0
B6: Задолженность: | D6: 0
B7: Итого к оплате: | D7: =D2+D4+D6-D3-D5 -> 0
B8: Количество мест:
A9: № | B9: Наименование | C9: кол | D9: цена | E9: сумма

Sheet сер
A1: 0 | B1: Товарный чек № от
B2: Отпущен товар за наличный расчет на сумму: | D2: =SUM(E:E) -> 18960
B3: Скидка составила: | D3: =ROUNDUP(D2*A1/100,0) -> 0
B4: Стоймость доставки: | D4: 0
B5: Предоплата: | D5: 0
B6: Задолженность: | D6: 0
B7: Итого к оплате: | D7: =D2+D4+D6-D3-D5 -> 18960
B8: Количество мест:
A9: № | B9: Наименование | C9: кол | D9: цена | E9: сумма
A10: 16 | B10: Генератор 2110 СТАРТВОЛЬТ (120А) LG 0110 | C10: 1 | D10: 3629 | E10: =D10*C10 -> 3629
A11: 16 | B11: Патрубки 21213 радиатора LUZAR (4 шт) 01213 | C11: 2 | D11: 380 | E11: 760
A12: 2 | B12: Радиатор 21214 охлажд.алюм. ДААЗ | C12: 1 | D12: 1726 | E12: 1726
A13: 16 | B13: Синхронизатор 2101 Тольятти | C13: 4 | D13: 165 | E13: 660
A14: 16 | B14: Стартер 1111 СТАРТВОЛЬТ редукторный LSt 0111 | C14: 1 | D14: 2613 | E14: 2613
A15: 16 | B15: Стартер 1118 СТАРТВОЛЬТ редукторный LSt 0118 | C15: 1 | D15: 2518 | E15: 2518
A16: 16 | B16: Стартер 2108 СТАРТВОЛЬТ редукторный LSt 0115 | C16: 2 | D16: 2565 | E16: 5130
A17: 6 | B17: Шатун 2101 АВТОВАЗ (уп-4) | C17: 4 | D17: 481 | E17: 1924

Sheet пяк
A1: 0 | B1: Товарный чек № от
B2: Отпущен товар за наличный расчет на сумму: | D2: =SUM(E:E) -> 0
B3: Скидка составила: | D3: =ROUNDUP(D2*A1/100,0) -> 0
B4: Стоймость доставки: | D4: 0
B5: Предоплата: | D5: 0
B6: Задолженность: | D6: 0
B7: Итого к оплате: | D7: =D2+D4+D6-D3-D5 -> 0
B8: Количество мест:
A9: № | B9: Наименование | C9: кол | D9: цена | E9: сумма

Sheet шеп
A1: 0 | B1: Товарный чек № от
B2: Отпущен товар за наличный расчет на сумму: | D2: =SUM(E:E) -> 39454
B3: Скидка составила: | D3: =ROUNDUP(D2*A1/100,0) -> 0
B4: Стоймость доставки: | D4: 0
B5: Предоплата: | D5: 0
B6: Задолженность: | D6: 0
B7: Итого к оплате: | D7: =D2+D4+D6-D3-D5 -> 39454
B8: Количество мест:
A9: № | B9: Наименование | C9: кол | D9: цена | E9: сумма
A10: 5 | B10: Балка подвески 2112 НАЧАЛО | C10: 1 | D10: 903 | E10: =D10*C10 -> 903
A11: 16 | B11: Брызговик 2110 задн. (2 шт) БРТ ремк-т № 139 | C11: 1 | D11: 207 | E11: 207
A12: 16 | B12: Брызговик 2110 перед. (2 шт) БРТ ремк-т № 138 | C12: 1 | D12: 200 | E12: 200
A13: 22 | B13: Брызговик 2115 перед. (2 шт) Самара | C13: 1 | D13: 118 | E13: 118
A14: 17 | B14: Брызговик двигателя 2108 левый | C14: 2 | D14: 135 | E14: 270
A15: 17 | B15: Брызговик двигателя 2108 правый | C15: 2 | D15: 159 | E15: 318
A16: 6 | B16: Ветровик 1118 AZARD накладной | C16: 1 | D16: 287 | E16: 287
A17: 2 | B17: Глушитель 2170 Тольятти | C17: 1 | D17: 793 | E17: 793
A18: 2 | B18: Глушитель 2172 Тольятти | C18: 1 | D18: 793 | E18: 793
A19: 17 | B19: Замок капота 2110 ДААЗ | C19: 2 | D19: 113 | E19: 226
A20: 5 | B20: Защита картера 2108 НАЧАЛО | C20: 1 | D20: 495 | E20: 495
A21: 5 | B21: Защита картера 2110 НАЧАЛО усиленная | C21: 1 | D21: 817 | E21: 817
A22: 8 | B22: Катафот крышки багажника 2111 Б/Н | C22: 1 | D22: 305 | E22: 305
A23: 2 | B23: Корпус задн.фонаря 1118 левый ДААЗ | C23: 1 | D23: 987 | E23: 987
A24: 11 | B24: Корпус задн.фонаря 2110 правый угол ФОРМУЛА СВЕТА | C24: 1 | D24: 562 | E24: 562
A25: 17 | B25: Корпус фильтра воздушного 11184 ВИС | C25: 1 | D25: 694 | E25: 694
A26: 17 | B26: Крышка бардачка 2108 в сборе | C26: 1 | D26: 279 | E26: 279
A27: 2 | B27: Облицовка динамика 21083 (2 шт) | C27: 2 | D27: 126 | E27: 252
A28: 17 | B28: Опора шаровая 2108 АВТОВАЗ | C28: 2 | D28: 269 | E28: 538
A29: 2 | B29: Подлокотник 2106 (4 шт) | C29: 1 | D29: 454 | E29: 454
A30: 16 | B30: Радиатор 21073 охлажд.алюм. LUZAR 01073 | C30: 1 | D30: 1558 | E30: 1558
A31: 17 | B31: Радиатор 2110 отопит.алюм. ДААЗ | C31: 1 | D31: 624 | E31: 624
A32: 17 | B32: Радиатор 2111 отопит.алюм. ДААЗ | C32: 1 | D32: 649 | E32: 649
A33: 17 | B33: Радиатор 2112 охлажд.алюм. ДААЗ | C33: 2 | D33: 1359 | E33: 2718
A34: 2 | B34: Радиатор 21213 охлажд.алюм. ДААЗ | C34: 1 | D34: 1591 | E34: 1591
A35: 16 | B35: Радиатор 2170 охлажд.алюм. LUZAR 0127 | C35: 3 | D35: 1463 | E35: 4389
A36: 17 | B36: Резонатор 1118 АВТОВАЗ | C36: 1 | D36: 1461 | E36: 1461
A37: 2 | B37: Резонатор 21073 Тольятти | C37: 1 | D37: 569 | E37: 569
A38: 2 | B38: Резонатор 2114 Тольятти евро3 с виброкомпенсатором | C38: 1 | D38: 1248 | E38: 1248
A39: 16 | B39: Решетка радиатора 2107 Тольятти хром | C39: 2 | D39: 264 | E39: 528
A40: 2 | B40: Решетка радиатора 2110 Тольятти н/о | C40: 2 | D40: 205 | E40: 410
A41: 2 | B41: Решетка радиатора 2110 Тольятти с/о | C41: 2 | D41: 180 | E41: 360
A42: 17 | B42: Решетка радиатора 2121 Тольятти черная | C42: 1 | D42: 225 | E42: =D42*C42 -> 225
A43: 2 | B43: Ручка 2109 наружняя ЕВРО РЫСЬ (к-т, 4 шт) | C43: 1 | D43: 1178 | E43: 1178
A44: 6 | B44: Спойлер капота (мухобойка) 1118 AZARD | C44: 1 | D44: 273 | E44: 273
A45: 6 | B45: Спойлер капота (мухобойка) 2110 AZARD | C45: 2 | D45: 280 | E45: 560
A46: 2 | B46: Спойлер капота (мухобойка) 2115 AZARD | C46: 2 | D46: 320 | E46: 640
A47: 2 | B47: Труба приемная 2108 Тольятти | C47: 1 | D47: 282 | E47: 282
A48: 16 | B48: Уплотнитель 2101 крышки багажника БРТ | C48: 8 | D48: 144 | E48: 1152
A49: 16 | B49: Уплотнитель 2107 двери БРТ (4 шт) ремк-т № 167 | C49: 2 | D49: 565 | E49: 1130
A50: 16 | B50: Уплотнитель 2108 ветрового стекла БРТ | C50: 1 | D50: 702 | E50: 702
A51: 6 | B51: Уплотнитель 2110 ветрового стекла УЭТ (верхний+нижний) | C51: 2 | D51: 266 | E51: 532
A52: 16 | B52: Уплотнитель 2110 двери левый БРТ | C52: 4 | D52: 220 | E52: 880
A53: 16 | B53: Уплотнитель 2110 двери правый БРТ | C53: 4 | D53: 220 | E53: 880
A54: 16 | B54: Уплотнитель 2112 крышки багажника БРТ | C54: 1 | D54: 174 | E54: 174
A55: 2 | B55: Фара 2115 левая BOSCH желтый указ.поворота 676512053-01 | C55: 1 | D55: 1673 | E55: 1673
A56: 2 | B56: Фара 2115 правая BOSCH желтый указ.поворота 676512054-01 | C56: 1 | D56: 1665 | E56: 1665
A57: 11 | B57: Фара противотуманная 2110 КНР (лев+прав) | C57: 5 | D57: 309 | E57: 1545
A58: 2 | B58: Хомут глушителя 2101 РАДА (48) | C58: 20 | D58: 18 | E58: 360

Sheet пзн
A1: 0 | B1: Товарный чек № от
B2: Отпущен товар за наличный расчет на сумму: | D2: =SUM(E:E) -> 0
B3: Скидка составила: | D3: =ROUNDUP(D2*A1/100,0) -> 0
B4: Стоймость доставки: | D4: 0
B5: Предоплата: | D5: 0
B6: Задолженность: | D6: 0
B7: Итого к оплате: | D7: =D2+D4+D6-D3-D5 -> 0
B8: Количество мест:
A9: № | B9: Наименование | C9: кол | D9: цена | E9: сумма

Sheet фаб
A1: 0 | B1: Товарный чек № от
B2: Отпущен товар за наличный расчет на сумму: | D2: =SUM(E:E) -> 27480
B3: Скидка составила: | D3: =ROUNDUP(D2*A1/100,0) -> 0
B4: Стоймость доставки: | D4: 0
B5: Предоплата: | D5: 0
B6: Задолженность: | D6: 0
B7: Итого к оплате: | D7: =D2+D4+D6-D3-D5 -> 27480
B8: Количество мест:
A9: № | B9: Наименование | C9: кол | D9: цена | E9: сумма
A10: 11 | B10: А/лампа 12-1,1 б/ц МАЯК 1 SMD белая (уп-10) | C10: 10 | D10: 12 | E10: =D10*C10 -> 120
A11: 11 | B11: А/лампа 12-1,1 б/ц МАЯК в патроне 1 LED белая (уп-10) | C11: 4 | D11: 17 | E11: 68
A12: 6 | B12: А/лампа 12-1,2 б/ц NORD YADA 1 LED белая 900281 (уп-10) | C12: 5 | D12: 9 | E12: 45
A13: 6 | B13: А/лампа 12-1,2 б/ц NORD YADA 1 LED белая в патроне 900282 (уп-10) | C13: 4 | D13: 18 | E13: 72
A14: 16 | B14: А/лампа 12-1,5 б/ц СТАРТВОЛЬТ в патроне | C14: 10 | D14: 19 | E14: 190
A15: 6 | B15: А/лампа 12-10 салон. NORD YADA (31мм) 901998 | C15: 4 | D15: 6 | E15: 24
A16: 6 | B16: А/лампа 12-10 салон. NORD YADA (36мм) 800043 | C16: 4 | D16: 6 | E16: 24
A17: 6 | B17: А/лампа 12-10 салон. NORD YADA (38мм) 901999 | C17: 4 | D17: 6 | E17: 24
A18: 15 | B18: А/лампа 12-10 салон. NORD YADA (41мм) 902000 | C18: 10 | D18: 7 | E18: 70
A19: 6 | B19: А/лампа 12-16 б/ц NORD YADA 902249 | C19: 4 | D19: 9 | E19: 36
A20: 11 | B20: А/лампа 12-18 б/ц МАЯК 61228 | C20: 4 | D20: 18 | E20: 72
A21: 6 | B21: А/лампа 12-2 МАЯК | C21: 9 | D21: 4 | E21: 36
A22: 1 | B22: А/лампа 12-21 GL 12 LED белая | C22: 4 | D22: 32 | E22: 128
A23: 1 | B23: А/лампа 12-21+5 GL 12 LED белая | C23: 4 | D23: 32 | E23: 128
A24: 1 | B24: А/лампа 12-21+5 GL 12 LED красная | C24: 4 | D24: 32 | E24: 128
A25: 6 | B25: А/лампа 12-4 NORD YADA 1 LED белая 900284 | C25: 10 | D25: 11 | E25: 110
A26: 6 | B26: А/лампа 12-5 б/ц NORD YADA 1 LED белая 900288 (уп-10) | C26: 10 | D26: 10 | E26: 100
A27: 11 | B27: А/лампа 12-5 б/ц МАЯК 1 LED белая | C27: 4 | D27: 10 | E27: 40
A28: 2 | B28: А/лампа 12-5 б/ц МАЯК 9 SMD белая | C28: 2 | D28: 69 | E28: 138
A29: 6 | B29: А/лампа 12-5 салон. NORD YADA (36мм) 6 LED белая 900302 | C29: 4 | D29: 23 | E29: 92
A30: 1 | B30: А/лампа 12-5 салон. OSRAM (41мм) 6413 | C30: 10 | D30: 20 | E30: 200
A31: 15 | B31: А/лампа 12-5 салон. SKYWAY (39мм) 9 SMD белая SJ-0950A | C31: 4 | D31: 44 | E31: 176
A32: 15 | B32: А/лампа 12-КЛУ-5 МАЯК люминисцентная | C32: 2 | D32: 64 | E32: 128
A33: 6 | B33: А/лампа 12-КЛУ-7 NORD YADA люминисцентная 903117 | C33: 2 | D33: 47 | E33: 94
A34: 6 | B34: А/лампа 12-КЛУ-9 NORD YADA люминисцентная 903095 | C34: 2 | D34: 50 | E34: 100
A35: 15 | B35: А/лампа H1 12-55 NORD YADA 800002 | C35: 10 | D35: 40 | E35: 400
A36: 15 | B36: А/лампа H1 12-55 NORD YADA SUPER WHITE 800016 | C36: 4 | D36: 49 | E36: 196
A37: 15 | B37: А/лампа H27 МАЯК | C37: 3 | D37: 138 | E37: 414
A38: 19 | B38: А/лампа H4 12-60/55-43 МАЯК 52420 (уп-10) | C38: 10 | D38: 75 | E38: 750
A39: 19 | B39: Автошампунь KERRY для б/контактной мойки 1л KR-Y200-F100 | C39: 1 | D39: 97 | E39: 97
A40: 15 | B40: Автошампунь АСТРОХИМ-спрей с воском МОЙКА БЕЗ ВОДЫ 500мл | C40: 1 | D40: 85 | E40: 85
A41: 15 | B41: Автошампунь ХОРС для б/контактной мойки 1л | C41: 1 | D41: 83 | E41: 83
A42: 15 | B42: Герметик-прокладка Казань 180гр | C42: 5 | D42: 64 | E42: =D42*C42 -> 320
A43: 15 | B43: Герметик-прокладка Казань 60гр | C43: 5 | D43: 31 | E43: 155
A44: 1 | B44: Камера задн.вида HX-GEN-002 | C44: 1 | D44: 679 | E44: 679
A45: 15 | B45: Коврики салонные УНИВЕРСАЛЬНЫЕ с перемычкой ворс. SKYWAY черный TS8003S-5 | C45: 1 | D45: 731 | E45: 731
A46: 15 | B46: Лопата для снега AIRLINE телескопическая AB-S-01 | C46: 1 | D46: 472 | E46: 472
A47: 19 | B47: Масло мотор.синт. 5W-30 CASTROL Magnatec AP 4л | C47: 1 | D47: 1622 | E47: 1622
A48: 19 | B48: Масло мотор.синт. 5W-30 ELF Evolution 5л | C48: 1 | D48: 1891 | E48: 1891
A49: 19 | B49: Масло мотор.синт. 5W-30 ENEOS Gasoline 1л | C49: 1 | D49: 428 | E49: 428
A50: 19 | B50: Масло мотор.синт. 5W-30 HONDA SN 4л | C50: 1 | D50: 1904 | E50: 1904
A51: 19 | B51: Масло мотор.синт. 5W-30 MANNOL Energy ОPEL 5л | C51: 1 | D51: 1410 | E51: 1410
A52: 19 | B52: Масло мотор.синт. 5W-30 MOBIL-1 Super 3000 X-1 Formula FE 4л | C52: 1 | D52: 1155 | E52: 1155
A53: 19 | B53: Масло мотор.синт. 5W-30 NESTE City Pro 1л | C53: 1 | D53: 373 | E53: 373
A54: 19 | B54: Масло мотор.синт. 5W-30 SHELL Helix 4л | C54: 1 | D54: 1232 | E54: 1232
A55: 19 | B55: Масло мотор.синт. 5W-30 TOYOTA SN 4л | C55: 1 | D55: 1581 | E55: 1581
A56: 19 | B56: Масло мотор.синт. 5W-40 CASTROL Magnatec А3/B4 4л | C56: 1 | D56: 1578 | E56: 1578
A57: 9 | B57: Масло мотор.синт. 5W-40 NGN Gold SM/CF 1л | C57: 1 | D57: 379 | E57: 379
A58: 9 | B58: Масло мотор.синт. 5W-40 NGN Gold SM/CF 4л | C58: 1 | D58: 1436 | E58: 1436
A59: 6 | B59: Освежитель воздуха на дефлектор DIFFEREN тропическая ночь | C59: 1 | D59: 192 | E59: 192
A60: 6 | B60: Освежитель воздуха на дефлектор DIFFEREN яблочный фреш | C60: 1 | D60: 192 | E60: 192
A61: 6 | B61: Освежитель воздуха на дефлектор DIFFEREN янтарная луна | C61: 1 | D61: 192 | E61: 192
A62: 6 | B62: Освежитель воздуха подвесной ALIBI FRESCO дер.бочонок черная линия | C62: 3 | D62: 91 | E62: 273
A63: 19 | B63: Присадка в масло KERRY стоп-дым KR-375 | C63: 1 | D63: 130 | E63: 130
A64: 15 | B64: Присадка в масло АСТРОХИМ для повышения компрессии 300мл | C64: 1 | D64: 148 | E64: 148
A65: 15 | B65: Присадка в масло АСТРОХИМ стоп-дым | C65: 1 | D65: 157 | E65: 157
A66: 19 | B66: Присадка в топливо АСТРОХИМ вытеснитель влаги 300мл | C66: 1 | D66: 83 | E66: 83
A67: 17 | B67: Разъем фары H-1 с проводом CARGEN AX-339 | C67: 5 | D67: 15 | E67: 75
A68: 6 | B68: Разъем фары H-11 с проводом NORD YADA 902647 | C68: 2 | D68: 30 | E68: 60
A69: 8 | B69: Разъем фары H-4 с проводом | C69: 2 | D69: 20 | E69: 40
A70: 15 | B70: Разъем фары H-7 с проводом ДИАЛУЧ | C70: 2 | D70: 32 | E70: 64
A71: 15 | B71: Разъем фары HB4 с проводом (уп-5) | C71: 1 | D71: 80 | E71: 80
A72: 16 | B72: Резинка щетки стеклоочистителя 51см БРТ | C72: 5 | D72: 19 | E72: 95
A73: 7 | B73: Утеплитель двигателя 125*60см ПРЕСТИЖ | C73: 1 | D73: 357 | E73: 357
A74: 2 | B74: Фильтр масляный 2105 БЕЛМАГ | C74: 2 | D74: 96 | E74: =D74*C74 -> 192
A75: 19 | B75: Фильтр масляный 2108 САЛЮТ | C75: 1 | D75: 120 | E75: 120
A76: 12 | B76: Фильтр масляный 2112 ЦИТРОН 229 | C76: 1 | D76: 132 | E76: 132
A77: 2 | B77: Фильтр масляный 412 Новосибирск | C77: 1 | D77: 42 | E77: 42
A78: 9 | B78: Фильтр масляный C-809 LYNX LC-562 | C78: 1 | D78: 205 | E78: 205
A79: 2 | B79: Фильтр масляный DAEWOO Lanos FINWHALE LF402 | C79: 1 | D79: 110 | E79: 110
A80: 6 | B80: Хомут-стяжка 2,2*60 NORD YADA белая (уп-100) | C80: 100 | D80: 0.3 | E80: 30
A81: 6 | B81: Хомут-стяжка 2,5*100 NORD YADA черная (уп-100) | C81: 100 | D81: 1 | E81: 100
A82: 6 | B82: Хомут-стяжка 2,5*200 NORD YADA черная (уп-100) | C82: 100 | D82: 1 | E82: 100
A83: 6 | B83: Хомут-стяжка 3,5*100 NORD YADA черная (уп-100) | C83: 100 | D83: 0.5 | E83: 50
A84: 7 | B84: Хомут-стяжка 3,6*200 NCT белая (100 шт) | C84: 1 | D84: 64 | E84: 64
A85: 6 | B85: Хомут-стяжка 3,6*200 NORD YADA черная (уп-100) | C85: 100 | D85: 1 | E85: 100
A86: 6 | B86: Хомут-стяжка 3,6*300 NORD YADA черная (уп-100) | C86: 100 | D86: 1.8 | E86: 180
A87: 7 | B87: Хомут-стяжка 4,8*200 NCT белая (100 шт) | C87: 1 | D87: 82 | E87: 82
A88: 23 | B88: Щетка стеклоочистителя 33см CARALL бескаркасная S950 | C88: 2 | D88: 104 | E88: 208
A89: 6 | B89: Щетка стеклоочистителя 36см ZEBRA бескаркасная | C89: 2 | D89: 110 | E89: 220
A90: 23 | B90: Щетка стеклоочистителя 38см CARALL бескаркасная S950 | C90: 2 | D90: 107 | E90: 214
A91: 23 | B91: Щетка стеклоочистителя 41см CARALL бескаркасная S950 | C91: 2 | D91: 109 | E91: 218
A92: 23 | B92: Щетка стеклоочистителя 45см CARALL бескаркасная S950 | C92: 2 | D92: 111 | E92: 222
A93: 23 | B93: Щетка стеклоочистителя 50см CARALL бескаркасная S950 | C93: 2 | D93: 113 | E93: 226
A94: 23 | B94: Щетка стеклоочистителя 53см CARALL бескаркасная S950 | C94: 2 | D94: 114 | E94: 228
A95: 23 | B95: Щетка стеклоочистителя 55см CARALL бескаркасная S950 | C95: 1 | D95: 115 | E95: 115
A96: 23 | B96: Щетка стеклоочистителя 61см CARALL бескаркасная S950 | C96: 2 | D96: 117 | E96: 234
A97: 23 | B97: Щетка стеклоочистителя 65см CARALL бескаркасная S950 | C97: 2 | D97: 118 | E97: 236

Sheet над
A1: 0 | B1: Товарный чек № от
B2: Отпущен товар за наличный расчет на сумму: | D2: =SUM(E:E) -> 42385
B3: Скидка составила: | D3: =ROUNDUP(D2*A1/100,0) -> 0
B4: Стоймость доставки: | D4: 0
B5: Предоплата: | D5: 0
B6: Задолженность: | D6: 0
B7: Итого к оплате: | D7: =D2+D4+D6-D3-D5 -> 42385
B8: Количество мест:
A9: № | B9: Наименование | C9: кол | D9: цена | E9: сумма
A10: 16 | B10: Генератор 21214 КЗАТЭ (110А) 9412.3701-03 | C10: 1 | D10: 4670 | E10: =D10*C10 -> 4670
A11: 12 | B11: Генератор 2123 КЗАТЭ (80А) 9402.3701-01 | C11: 1 | D11: 4007 | E11: 4007
A12: 16 | B12: Домкрат 1,3т ромбический Ульяновск с выс.площ. УРД-09 | C12: 2 | D12: 462 | E12: 924
A13: 16 | B13: Домкрат 1т ромбический Ульяновск УРД-01 | C13: 5 | D13: 436 | E13: 2180
A14: 17 | B14: Карбюратор 2107-20 ДААЗ | C14: 1 | D14: 3674 | E14: 3674
A15: 17 | B15: Карбюратор 21083 ДААЗ | C15: 1 | D15: 4223 | E15: 4223
A16: 16 | B16: Патрубки 2170 отопителя LUZAR (2 шт) 0127 | C16: 2 | D16: 171 | E16: 342
A17: 5 | B17: Реле 702 контроля зарядки 2101 | C17: 5 | D17: 60 | E17: 300
A18: 2 | B18: Реле втягивающее 2110 ELDIX | C18: 2 | D18: 586 | E18: 1172
A19: 2 | B19: Ролик 2108 натяжения ремня Вологда | C19: 8 | D19: 385 | E19: 3080
A20: 5 | B20: Рычаг маятниковый 21213 Гусев | C20: 4 | D20: 409 | E20: 1636
A21: 16 | B21: Фильтр воздушный 2101 САЛЮТ | C21: 10 | D21: 77 | E21: 770
A22: 19 | B22: Фильтр воздушный 2112 САЛЮТ | C22: 10 | D22: 141 | E22: 1410
A23: 16 | B23: Фильтр топливный 2110 САЛЮТ | C23: 10 | D23: 158 | E23: 1580
A24: 16 | B24: Фильтр топливный 2123 САЛЮТ | C24: 10 | D24: 158 | E24: 1580
A25: 12 | B25: Эл.двигат.отопит. 1118 КЗАЭ 362.3780 | C25: 1 | D25: 1239 | E25: 1239
A26: 2 | B26: Эл.двигат.отопит. 1118/2170 LUZAR конд.Panasonic 01182 | C26: 1 | D26: 1852 | E26: 1852
A27: 5 | B27: Эл.двигат.отопит. 2101 ПЕКАР с крыльчаткой | C27: 4 | D27: 535 | E27: 2140
A28: 12 | B28: Эл.двигат.отопит. 2108 КЗАЭ 45.3730 | C28: 2 | D28: 765 | E28: 1530
A29: 12 | B29: Эл.двигат.отопит. 2108 КЗАЭ в сборе | C29: 2 | D29: 929 | E29: 1858
A30: 16 | B30: Эл.двигат.отопит. 2110 LUZAR 0110 | C30: 1 | D30: 974 | E30: 974
A31: 31 | B31: Эл.двигат.отопит. 2123 КЗАЭ 36.3780 | C31: 1 | D31: 1244 | E31: 1244

Sheet кзн
A1: 0 | B1: Товарный чек № от
B2: Отпущен товар за наличный расчет на сумму: | D2: =SUM(E:E) -> 0
B3: Скидка составила: | D3: =ROUNDUP(D2*A1/100,0) -> 0
B4: Стоймость доставки: | D4: 0
B5: Предоплата: | D5: 0
B6: Задолженность: | D6: 0
B7: Итого к оплате: | D7: =D2+D4+D6-D3-D5 -> 0
B8: Количество мест:
A9: № | B9: Наименование | C9: кол | D9: цена | E9: сумма

Sheet арх
A1: 0 | B1: Товарный чек № от
B2: Отпущен товар за наличный расчет на сумму: | D2: =SUM(E:E) -> 72403
B3: Скидка составила: | D3: =ROUNDUP(D2*A1/100,0) -> 0
B4: Стоймость доставки: | D4: 0
B5: Предоплата: | D5: 0
B6: Задолженность: | D6: 0
B7: Итого к оплате: | D7: =D2+D4+D6-D3-D5 -> 72403
B8: Количество мест:
A9: № | B9: Наименование | C9: кол | D9: цена | E9: сумма
A10: 6 | B10: ..СЧЕТ-А/лампа H1 12-55 NORD YADA (2 шт) в блистере 902227 | C10: 1 | D10: 66 | E10: =D10*C10 -> 66
A11: 6 | B11: ..СЧЕТ-А/лампа H3 12-55 NORD YADA (2 шт) в блистере 902229 | C11: 1 | D11: 66 | E11: 66
A12: 6 | B12: ..СЧЕТ-А/лампа H4 12-60/55-43 NORD YADA (2 шт) в блистере 902231 | C12: 2 | D12: 171 | E12: 342
A13: 6 | B13: ..СЧЕТ-Адаптер ремня безопасности APV детский (винил) красный | C13: 1 | D13: 137 | E13: 137
A14: 6 | B14: ..СЧЕТ-Адаптер ремня безопасности APV детский (винил) синий | C14: 1 | D14: 137 | E14: 137
A15: 6 | B15: ..СЧЕТ-Антифриз 10л красный Дзержинск | C15: 1 | D15: 541 | E15: 541
A16: 6 | B16: ..СЧЕТ-Антифриз 10л красный Дзержинск | C16: 2 | D16: 541 | E16: 1082
A17: 6 | B17: ..СЧЕТ-Ветровик 2109 VORON GLASS накладной | C17: 1 | D17: 357 | E17: 357
A18: 6 | B18: ..СЧЕТ-Ветровик 2110 VORON GLASS накладной | C18: 1 | D18: 467 | E18: 467
A19: 6 | B19: ..СЧЕТ-Коврики салонные 2108 резин. AILERON | C19: 1 | D19: 753 | E19: 753
A20: 6 | B20: ..СЧЕТ-Кольца поршневые 21011 (79,8) АВТОВАЗ | C20: 1 | D20: 530 | E20: 530
A21: 6 | B21: ..СЧЕТ-Опора шаровая 2108 ЗА РУЛЕМ | C21: 3 | D21: 285 | E21: 855
A22: 6 | B22: ..СЧЕТ-Освежитель воздуха на дефлектор ALIBI SENSO новая машина | C22: 1 | D22: 107 | E22: 107
A23: 6 | B23: ..СЧЕТ-Освежитель воздуха на дефлектор IMPULSE морской прибой | C23: 1 | D23: 176 | E23: 176
A24: 6 | B24: ..СЧЕТ-Освежитель воздуха на дефлектор IMPULSE тропическая ночь | C24: 1 | D24: 176 | E24: 176
A25: 6 | B25: ..СЧЕТ-Освежитель воздуха на дефлектор PRETTY ваниль | C25: 1 | D25: 161 | E25: 161
A26: 6 | B26: ..СЧЕТ-Освежитель воздуха на дефлектор PRETTY СК сквош | C26: 1 | D26: 183 | E26: 183
A27: 6 | B27: ..СЧЕТ-Освежитель воздуха на панель CIEL PREMIUM LUXURY цветы | C27: 1 | D27: 198 | E27: 198
A28: 6 | B28: ..СЧЕТ-Освежитель воздуха на панель CIEL океан | C28: 1 | D28: 198 | E28: 198
A29: 6 | B29: ..СЧЕТ-Освежитель воздуха на панель NANO душистая ваниль | C29: 1 | D29: 198 | E29: 198
A30: 6 | B30: ..СЧЕТ-Освежитель воздуха подвесной 5000рублей сухой ваниль | C30: 1 | D30: 25 | E30: 25
A31: 6 | B31: ..СЧЕТ-Освежитель воздуха подвесной AQUA SPLASH сухой прохладный ручей | C31: 1 | D31: 29 | E31: 29
A32: 6 | B32: ..СЧЕТ-Освежитель воздуха подвесной BE FRESH сухой новая машина | C32: 1 | D32: 29 | E32: 29
A33: 6 | B33: ..СЧЕТ-Освежитель воздуха подвесной BE FRESH сухой цветок сакуры | C33: 1 | D33: 29 | E33: 29
A34: 6 | B34: ..СЧЕТ-Освежитель воздуха подвесной FRESHCO COFFEE мешочек горячий шоколад | C34: 1 | D34: 141 | E34: 141
A35: 6 | B35: ..СЧЕТ-Освежитель воздуха подвесной FRESHCO COFFEE мешочек капучино | C35: 1 | D35: 141 | E35: 141
A36: 6 | B36: ..СЧЕТ-Освежитель воздуха подвесной FRESHCO SEA SALT мешочек ель | C36: 1 | D36: 143 | E36: 143
A37: 6 | B37: ..СЧЕТ-Освежитель воздуха подвесной VOYAGE сухой нью-йорк | C37: 1 | D37: 31 | E37: 31
A38: 6 | B38: ..СЧЕТ-Освежитель воздуха подвесной ЁЛКИ-МОТАЛКИ сухой ваниль | C38: 1 | D38: 22 | E38: 22
A39: 6 | B39: ..СЧЕТ-Освежитель воздуха подвесной КОРОНА ИМПЕРИИ мембранный император | C39: 1 | D39: 130 | E39: 130
A40: 6 | B40: ..СЧЕТ-Освежитель воздуха подвесной ТЕРРИТОРИЯ МУЖЧИН сухой океанский бриз | C40: 1 | D40: 41 | E40: 41
A41: 6 | B41: ..СЧЕТ-Освежитель воздуха-подвеска БИЛЬЯРДНЫЕ ШАРЫ | C41: 1 | D41: 91 | E41: 91
A42: 6 | B42: ..СЧЕТ-Освежитель воздуха-подвеска БУТСА черная линия | C42: 1 | D42: 116 | E42: =D42*C42 -> 116
A43: 6 | B43: ..СЧЕТ-Очиститель интерьера DRI-KLEEN пенный аэрозоль 500мл | C43: 1 | D43: 151 | E43: 151
A44: 6 | B44: ..СЧЕТ-Подш.ступ. 2108 задн. АВТОВАЗ 256706 | C44: 2 | D44: 548 | E44: 1096
A45: 6 | B45: ..СЧЕТ-Ручка 2109 наружняя ЕВРО AZARD черный (к-т, 4 шт) | C45: 1 | D45: 820 | E45: 820
A46: 6 | B46: ..СЧЕТ-Ручка 2110 наружняя ЕВРО РЫСЬ (к-т, 4 шт) | C46: 1 | D46: 1011 | E46: 1011
A47: 6 | B47: ..СЧЕТ-Салфетка-замша большая CITYUP СА-221 | C47: 1 | D47: 83 | E47: 83
A48: 6 | B48: ..СЧЕТ-Спойлер капота (мухобойка) 2107 AZARD | C48: 1 | D48: 260 | E48: 260
A49: 6 | B49: ..СЧЕТ-Спойлер капота (мухобойка) 2115 VORON GLASS еврокрепеж | C49: 1 | D49: 287 | E49: 287
A50: 6 | B50: ..СЧЕТ-Спойлер капота (мухобойка) 2170 VORON GLASS еврокрепеж | C50: 1 | D50: 337 | E50: 337
A51: 6 | B51: ..СЧЕТ-Тосол 10л Дзержинск | C51: 1 | D51: 483 | E51: 483
A52: 6 | B52: ..СЧЕТ-Трос сцепления 2110 БЕЛМАГ | C52: 3 | D52: 214 | E52: 642
A53: 6 | B53: ..СЧЕТ-Фильтр масляный 2108 САЛЮТ | C53: 7 | D53: 120 | E53: 840
A54: 6 | B54: ..СЧЕТ-Ходовые огни WML-3061 | C54: 1 | D54: 198 | E54: 198
A55: 6 | B55: ..СЧЕТ-Чехлы УНИВЕРСАЛЬНЫЕ AZARD-Hunter полиэстер (синий) | C55: 1 | D55: 1741 | E55: 1741
A56: 6 | B56: ..СЧЕТ-Щетка стеклоочистителя 36см ZEBRA бескаркасная | C56: 2 | D56: 110 | E56: 220
A57: 6 | B57: ..СЧЕТ-Щетка стеклоочистителя 41см WF бескаркасная | C57: 3 | D57: 108 | E57: 324
A58: 6 | B58: ..СЧЕТ-Щетка стеклоочистителя 60см WF бескаркасная | C58: 1 | D58: 132 | E58: 132
A59: 6 | B59: .РЕАЛ-Адаптер ремня безопасности APV детский (винил) красный | C59: 1 | D59: 137 | E59: 137
A60: 6 | B60: .РЕАЛ-Адаптер ремня безопасности APV детский (винил) синий | C60: 1 | D60: 137 | E60: 137
A61: 6 | B61: .РЕАЛ-Адаптер ремня безопасности APV детский (винил) черный | C61: 1 | D61: 137 | E61: 137
A62: 6 | B62: .РЕАЛ-Блок предохр. и реле 21073 АВАР 521 | C62: 1 | D62: 1785 | E62: 1785
A63: 6 | B63: .РЕАЛ-Блок предохр. и реле 2108 с/о (стар.пред.) | C63: 1 | D63: 2431 | E63: 2431
A64: 6 | B64: .РЕАЛ-Блок управления отопителя 2110 | C64: 1 | D64: 1001 | E64: 1001
A65: 6 | B65: .РЕАЛ-Ветровик 2107 AZARD накладной | C65: 2 | D65: 270 | E65: 540
A66: 6 | B66: .РЕАЛ-Ветровик 2121 AZARD вставной | C66: 1 | D66: 270 | E66: 270
A67: 6 | B67: .РЕАЛ-Ветровик 2123 AZARD накладной | C67: 1 | D67: 346 | E67: 346
A68: 6 | B68: .РЕАЛ-Коврики салонные 2108 резин. AILERON | C68: 1 | D68: 753 | E68: 753
A69: 6 | B69: .РЕАЛ-Компрессор ZORK 30л/мин без упак. | C69: 1 | D69: 521 | E69: 521
A70: 6 | B70: .РЕАЛ-Опора шаровая 2101 верх. ЗА РУЛЕМ | C70: 6 | D70: 280 | E70: 1680
A71: 6 | B71: .РЕАЛ-Опора шаровая 2101 нижн. ЗА РУЛЕМ | C71: 10 | D71: 280 | E71: 2800
A72: 6 | B72: .РЕАЛ-Опора шаровая 2108 ЗА РУЛЕМ | C72: 7 | D72: 285 | E72: 1995
A73: 6 | B73: .РЕАЛ-Освежитель воздуха на дефлектор IMPULSE морской прибой | C73: 1 | D73: 215 | E73: 215
A74: 6 | B74: .РЕАЛ-Освежитель воздуха на дефлектор IMPULSE тропическая ночь | C74: 1 | D74: 215 | E74: =D74*C74 -> 215
A75: 6 | B75: .РЕАЛ-Освежитель воздуха на панель CIEL океан | C75: 2 | D75: 198 | E75: 396
A76: 6 | B76: .РЕАЛ-Освежитель воздуха на панель NANO тропическая ночь | C76: 1 | D76: 230 | E76: 230
A77: 6 | B77: .РЕАЛ-Освежитель воздуха подвесной 100$ сухой черный лед | C77: 2 | D77: 30 | E77: 60
A78: 6 | B78: .РЕАЛ-Освежитель воздуха подвесной 5000рублей сухой черный лед | C78: 2 | D78: 30 | E78: 60
A79: 6 | B79: .РЕАЛ-Освежитель воздуха подвесной ALIBI AUTO гелевый антитабак | C79: 1 | D79: 71 | E79: 71
A80: 6 | B80: .РЕАЛ-Освежитель воздуха подвесной ALIBI AUTO гелевый ваниль | C80: 1 | D80: 71 | E80: 71
A81: 6 | B81: .РЕАЛ-Освежитель воздуха подвесной ALIBI AUTO гелевый новая машина | C81: 1 | D81: 71 | E81: 71
A82: 6 | B82: .РЕАЛ-Освежитель воздуха подвесной ALIBI AUTO гелевый океан | C82: 1 | D82: 71 | E82: 71
A83: 6 | B83: .РЕАЛ-Освежитель воздуха подвесной ALIBI FRESCO дер.бочонок антитабак | C83: 1 | D83: 91 | E83: 91
A84: 6 | B84: .РЕАЛ-Освежитель воздуха подвесной ALIBI FRESCO дер.бочонок бриз | C84: 1 | D84: 91 | E84: 91
A85: 6 | B85: .РЕАЛ-Освежитель воздуха подвесной ALIBI FRESCO дер.бочонок ваниль | C85: 1 | D85: 91 | E85: 91
A86: 6 | B86: .РЕАЛ-Освежитель воздуха подвесной ALIBI FRESCO дер.бочонок новая машина | C86: 1 | D86: 91 | E86: 91
A87: 6 | B87: .РЕАЛ-Освежитель воздуха подвесной ALIBI FRESCO дер.бочонок парфюм | C87: 1 | D87: 91 | E87: 91
A88: 6 | B88: .РЕАЛ-Освежитель воздуха подвесной ALIBI FRESCO дер.бочонок секси | C88: 1 | D88: 91 | E88: 91
A89: 6 | B89: .РЕАЛ-Освежитель воздуха подвесной ALIBI FRESCO дер.бочонок черная линия | C89: 1 | D89: 91 | E89: 91
A90: 6 | B90: .РЕАЛ-Освежитель воздуха подвесной CONTEX сухой Orgasm Tester | C90: 1 | D90: 60 | E90: 60
A91: 6 | B91: .РЕАЛ-Освежитель воздуха подвесной CONTEX сухой Sex First | C91: 1 | D91: 60 | E91: 60
A92: 6 | B92: .РЕАЛ-Освежитель воздуха подвесной CONTEX сухой Sex On Board | C92: 1 | D92: 60 | E92: 60
A93: 6 | B93: .РЕАЛ-Освежитель воздуха подвесной CONTEX сухой Sex Queen | C93: 1 | D93: 60 | E93: 60
A94: 6 | B94: .РЕАЛ-Освежитель воздуха подвесной CONTEX сухой Warning | C94: 1 | D94: 60 | E94: 60
A95: 6 | B95: .РЕАЛ-Освежитель воздуха подвесной FRESHCO COFFEE мешочек ваниль и кофе | C95: 1 | D95: 141 | E95: 141
A96: 6 | B96: .РЕАЛ-Освежитель воздуха подвесной FRESHCO COFFEE мешочек горячий шоколад | C96: 1 | D96: 141 | E96: 141
A97: 6 | B97: .РЕАЛ-Освежитель воздуха подвесной FRESHCO COFFEE мешочек домашнее печенье | C97: 1 | D97: 141 | E97: 141
A98: 6 | B98: .РЕАЛ-Освежитель воздуха подвесной FRESHCO COFFEE мешочек пина колада | C98: 1 | D98: 141 | E98: 141
A99: 6 | B99: .РЕАЛ-Освежитель воздуха подвесной FRESHCO SEA SALT мешочек ель | C99: 1 | D99: 143 | E99: 143
A100: 6 | B100: .РЕАЛ-Освежитель воздуха подвесной LOVELY дикая орхидея | C100: 1 | D100: 248 | E100: 248
A101: 6 | B101: .РЕАЛ-Освежитель воздуха подвесной VOYAGE сухой нью-йорк | C101: 1 | D101: 31 | E101: 31
A102: 6 | B102: .РЕАЛ-Освежитель воздуха подвесной VOYAGE сухой с-петербург | C102: 1 | D102: 31 | E102: 31
A103: 6 | B103: .РЕАЛ-Освежитель воздуха подвесной КОРОНА ИМПЕРИИ мембранный монарх | C103: 1 | D103: 130 | E103: 130
A104: 6 | B104: .РЕАЛ-Освежитель воздуха-подвеска БИЛЬЯРДНЫЕ ШАРЫ новая машина | C104: 1 | D104: 91 | E104: 91
A105: 6 | B105: .РЕАЛ-Освежитель воздуха-подвеска БОКСЕРСКИЕ ПЕРЧАТКИ новая машина | C105: 1 | D105: 153 | E105: 153
A106: 6 | B106: .РЕАЛ-Освежитель воздуха-подвеска БУТСА черная линия | C106: 1 | D106: 118 | E106: =D106*C106 -> 118
A107: 6 | B107: .РЕАЛ-Очиститель интерьера DRI-KLEEN пенный аэрозоль 500мл | C107: 1 | D107: 151 | E107: 151
A108: 6 | B108: .РЕАЛ-Патрубки 2105 радиатора (медь) LUZAR (4 шт) 0105с | C108: 1 | D108: 377 | E108: 377
A109: 6 | B109: .РЕАЛ-Патрубки 21073 радиатора LUZAR (4 шт) 01073 | C109: 1 | D109: 391 | E109: 391
A110: 6 | B110: .РЕАЛ-Патрубки 2170 отопителя LUZAR (2 шт) 0127 | C110: 1 | D110: 172 | E110: 172
A111: 6 | B111: .РЕАЛ-Подш.ступ. 2108 задн. LIGA | C111: 1 | D111: 385 | E111: 385
A112: 6 | B112: .РЕАЛ-Предохранители 2101 цилиндрические NORD YADA 900509 | C112: 11 | D112: 21 | E112: 231
A113: 6 | B113: .РЕАЛ-Пылесос AIRLINE VCA-01 | C113: 1 | D113: 1133 | E113: 1133
A114: 6 | B114: .РЕАЛ-Распред.зажиг. 2103 б/к СОАТЭ 038.3706 | C114: 1 | D114: 959 | E114: 959
A115: 6 | B115: .РЕАЛ-Реле универсальное 4-х контактное ЭМИ | C115: 10 | D115: 36 | E115: 360
A116: 6 | B116: .РЕАЛ-Ролик 2108 натяжения ремня LGR | C116: 4 | D116: 253 | E116: 1012
A117: 6 | B117: .РЕАЛ-Ролик 2112 опорный АВТОВАЗ | C117: 4 | D117: 469 | E117: 1876
A118: 6 | B118: .РЕАЛ-Ручка 2109 наружняя ЕВРО AZARD кварц (к-т, 4 шт) | C118: 1 | D118: 898 | E118: 898
A119: 6 | B119: .РЕАЛ-Ручка 2109 наружняя ЕВРО AZARD черный (к-т, 4 шт) | C119: 1 | D119: 820 | E119: 820
A120: 6 | B120: .РЕАЛ-Ручка 2110 наружняя ЕВРО AZARD черный (к-т, 4 шт) | C120: 1 | D120: 658 | E120: 658
A121: 6 | B121: .РЕАЛ-Ручка 2110 наружняя ЕВРО РЫСЬ (к-т, 4 шт) | C121: 1 | D121: 1011 | E121: 1011
A122: 6 | B122: .РЕАЛ-Спойлер капота (мухобойка) 2115 VORON GLASS еврокрепеж | C122: 2 | D122: 312 | E122: 624
A123: 6 | B123: .РЕАЛ-Фонарь задний 2110 TORINO тонир.хрусталь (лев+прав) DL5267 | C123: 2 | D123: 1899 | E123: 3798
A124: 6 | B124: .РЕАЛ-Фонарь задний 2115 TORINO карбон.корпус (лев+прав) DL5271 | C124: 2 | D124: 1899 | E124: 3798
A125: 6 | B125: .РЕАЛ-Чехлы УНИВЕРСАЛЬНЫЕ AZARD-Pride велюр (серый) | C125: 1 | D125: 2115 | E125: 2115
A126: 6 | B126: .РЕАЛ-Чехлы УНИВЕРСАЛЬНЫЕ PSV-Discovery Crocodile эко/кожа (черный) | C126: 1 | D126: 2985 | E126: 2985
A127: 6 | B127: .РЕАЛ-Чехлы УНИВЕРСАЛЬНЫЕ PSV-Triumf festival (черный/серебро) | C127: 1 | D127: 1995 | E127: 1995
A128: 6 | B128: .РЕАЛ-Чехлы УНИВЕРСАЛЬНЫЕ SENATOR-Alabama жаккард (красный) | C128: 1 | D128: 1769 | E128: 1769
A129: 6 | B129: .РЕАЛ-Чехлы УНИВЕРСАЛЬНЫЕ SENATOR-Alabama жаккард (серый) | C129: 1 | D129: 1769 | E129: 1769
A130: 6 | B130: .РЕАЛ-Чехлы УНИВЕРСАЛЬНЫЕ SENATOR-Arizona жаккард (серый) | C130: 1 | D130: 2714 | E130: 2714
A131: 6 | B131: .РЕАЛ-Чехлы УНИВЕРСАЛЬНЫЕ SENATOR-Kanzas жаккард (красный) | C131: 1 | D131: 2703 | E131: 2703
A132: 6 | B132: .РЕАЛ-Чехлы УНИВЕРСАЛЬНЫЕ SENATOR-Nebraska жаккард (черный) | C132: 1 | D132: 2937 | E132: 2937

Sheet рол
A1: 0 | B1: Товарный чек № от
B2: Отпущен товар за наличный расчет на сумму: | D2: =SUM(E:E) -> 0
B3: Скидка составила: | D3: =ROUNDUP(D2*A1/100,0) -> 0
B4: Стоймость доставки: | D4: 0
B5: Предоплата: | D5: 0
B6: Задолженность: | D6: 0
B7: Итого к оплате: | D7: =D2+D4+D6-D3-D5 -> 0
B8: Количество мест:
A9: № | B9: Наименование | C9: кол | D9: цена | E9: сумма

Sheet уз
A1: 0 | B1: Товарный чек № от
B2: Отпущен товар за наличный расчет на сумму: | D2: =SUM(E:E) -> 17741
B3: Скидка составила: | D3: =ROUNDUP(D2*A1/100,0) -> 0
B4: Стоймость доставки: | D4: 0
B5: Предоплата: | D5: 0
B6: Задолженность: | D6: 0
B7: Итого к оплате: | D7: =D2+D4+D6-D3-D5 -> 17741
B8: Количество мест:
A9: № | B9: Наименование | C9: кол | D9: цена | E9: сумма
A10: 16 | B10: А/лампа H4 12-60/55-43 СТАРТВОЛЬТ | C10: 20 | D10: 67 | E10: =D10*C10 -> 1340
A11: 15 | B11: А/лампа H7 12-55 NORD YADA 800006 | C11: 20 | D11: 73 | E11: 1460
A12: 9 | B12: Датчик заднего хода 21074 ERA 330628 | C12: 5 | D12: 112 | E12: 560
A13: 6 | B13: Кнопка двери 2101-08 | C13: 20 | D13: 4 | E13: 80
A14: 5 | B14: Колодки 2108 перед.торм. DAFMI | C14: 5 | D14: 299 | E14: 1495
A15: 16 | B15: Колодки 2108 перед.торм. TRIALLI | C15: 5 | D15: 282 | E15: 1410
A16: 16 | B16: Колпачки маслоотраж. ГАЗ TRIALLI (8 шт) | C16: 3 | D16: 198 | E16: 594
A17: 2 | B17: Крестовина рулевая ГАЗ-3302 TRIALLI 902 | C17: 5 | D17: 108 | E17: 540
A18: 16 | B18: Насос водяной ГАЗ-33027 дв.4216 LUZAR 03216 | C18: 2 | D18: 1216 | E18: 2432
A19: 16 | B19: Насос водяной ГАЗ-33027 дв.4216 LUZAR евро4 03217 | C19: 2 | D19: 1321 | E19: 2642
A20: 16 | B20: Насос водяной дополнительный 12V СТАРТВОЛЬТ электро 18 мм. VPM 03780 | C20: 2 | D20: 751 | E20: 1502
A21: 16 | B21: Радиатор ГАЗель Next дв.Cummins охлажд.алюм. LUZAR 0322b | C21: 1 | D21: 3686 | E21: 3686

Sheet крив
A1: 0 | B1: Товарный чек № от
B2: Отпущен товар за наличный расчет на сумму: | D2: =SUM(E:E) -> 3359
B3: Скидка составила: | D3: =ROUNDUP(D2*A1/100,0) -> 0
B4: Стоймость доставки: | D4: 0
B5: Предоплата: | D5: 0
B6: Задолженность: | D6: 0
B7: Итого к оплате: | D7: =D2+D4+D6-D3-D5 -> 3359
B8: Количество мест:
A9: № | B9: Наименование | C9: кол | D9: цена | E9: сумма
A10: 6 | B10: Освежитель воздуха на дефлектор IMPULSE морской прибой | C10: 1 | D10: 215 | E10: =D10*C10 -> 215
A11: 6 | B11: Освежитель воздуха на дефлектор IMPULSE тропическая ночь | C11: 1 | D11: 215 | E11: 215
A12: 6 | B12: Освежитель воздуха на дефлектор IMPULSE черный линия | C12: 1 | D12: 215 | E12: 215
A13: 6 | B13: Освежитель воздуха на дефлектор PRETTY орхидея | C13: 1 | D13: 228 | E13: 228
A14: 6 | B14: Освежитель воздуха на панель NANO новая машина | C14: 1 | D14: 230 | E14: 230
A15: 6 | B15: Освежитель воздуха на панель NANO океанский бриз | C15: 1 | D15: 230 | E15: 230
A16: 6 | B16: Освежитель воздуха на панель NANO тропический цветок | C16: 1 | D16: 230 | E16: 230
A17: 6 | B17: Освежитель воздуха на панель NANO черный лед | C17: 1 | D17: 230 | E17: 230
A18: 6 | B18: Освежитель воздуха подвесной BE FRESH сухой антитабак | C18: 5 | D18: 30 | E18: 150
A19: 6 | B19: Освежитель воздуха подвесной CARDS-Дама черви сухой тутти-фрутти | C19: 1 | D19: 22 | E19: 22
A20: 6 | B20: Освежитель воздуха подвесной CARDS-Король пик сухой шоколад | C20: 1 | D20: 22 | E20: 22
A21: 6 | B21: Освежитель воздуха подвесной CARDS-Туз пик сухой новая машина | C21: 1 | D21: 22 | E21: 22
A22: 15 | B22: Освежитель воздуха подвесной FOUETTE Aroma Box меловой черный лед | C22: 1 | D22: 53 | E22: 53
A23: 6 | B23: Освежитель воздуха подвесной FRESHCO COFFEE мешочек вишня с миндалем | C23: 1 | D23: 141 | E23: 141
A24: 6 | B24: Освежитель воздуха подвесной FRESHCO COFFEE мешочек капучино | C24: 1 | D24: 141 | E24: 141
A25: 6 | B25: Освежитель воздуха подвесной ДЕВУШКИ сухой апельсин | C25: 1 | D25: 42 | E25: 42
A26: 6 | B26: Освежитель воздуха подвесной ДЕВУШКИ сухой клубника | C26: 1 | D26: 42 | E26: 42
A27: 6 | B27: Освежитель воздуха подвесной ДЕВУШКИ сухой морская свежесть | C27: 1 | D27: 42 | E27: 42
A28: 6 | B28: Освежитель воздуха подвесной ДЕВУШКИ сухой персик | C28: 1 | D28: 42 | E28: 42
A29: 6 | B29: Освежитель воздуха подвесной ДЕВУШКИ сухой шоколад | C29: 1 | D29: 42 | E29: 42
A30: 6 | B30: Освежитель воздуха подвесной ТЕРРИТОРИЯ МУЖЧИН сухой океанский бриз | C30: 1 | D30: 41 | E30: 41
A31: 6 | B31: Освежитель воздуха-спрей SPRAY CLASSIC антитабак | C31: 1 | D31: 191 | E31: 191
A32: 6 | B32: Освежитель воздуха-спрей SPRAY CLASSIC зеленый чай | C32: 1 | D32: 191 | E32: 191
A33: 6 | B33: Освежитель воздуха-спрей SPRAY CLASSIC новая машина | C33: 1 | D33: 191 | E33: 191
A34: 6 | B34: Освежитель воздуха-спрей SPRAY CLASSIC черная линия | C34: 1 | D34: 191 | E34: 191

Sheet стс
A1: 0 | B1: Товарный чек № от
B2: Отпущен товар за наличный расчет на сумму: | D2: =SUM(E:E) -> 20203
B3: Скидка составила: | D3: =ROUNDUP(D2*A1/100,0) -> 0
B4: Стоймость доставки: | D4: 0
B5: Предоплата: | D5: 0
B6: Задолженность: | D6: 0
B7: Итого к оплате: | D7: =D2+D4+D6-D3-D5 -> 20203
B8: Количество мест:
A9: № | B9: Наименование | C9: кол | D9: цена | E9: сумма
A10: б | B10: …ОБМЕН-Решетка радиатора 2110 хром | C10: 1 | D10: 0 | E10: =D10*C10 -> 0
A11: 6 | B11: А/лампа 24-1,2 б/ц NORD YADA 1 LED конус синяя 900443 | C11: 10 | D11: 8 | E11: 80
A12: 11 | B12: А/лампа 24-1,2 б/ц МАЯК | C12: 20 | D12: 6 | E12: 120
A13: 11 | B13: А/лампа 24-1,2 б/ц МАЯК 1 LED белая (уп-10) | C13: 10 | D13: 10 | E13: 100
A14: 1 | B14: А/лампа H11 12-55 EAGLEYE Plazma xenon (2 шт) | C14: 1 | D14: 380 | E14: 380
A15: 1 | B15: А/лампа H11 12-55 MTF-Platinum (2 шт) | C15: 1 | D15: 800 | E15: 800
A16: 1 | B16: А/лампа H7 12-55+80% MTF-Argentum (2 шт) | C16: 1 | D16: 765 | E16: 765
A17: 1 | B17: А/лампа H7 12-55+80% MTF-Palladium (2 шт) | C17: 1 | D17: 713 | E17: 713
A18: 5 | B18: Бегунок 2101 AT 030 | C18: 1 | D18: 64 | E18: 64
A19: 8 | B19: Выключатель печки 2123 | C19: 1 | D19: 75 | E19: 75
A20: 8 | B20: Датчик авар.давл. масла 1118 BAUTLER | C20: 1 | D20: 72 | E20: 72
A21: 8 | B21: Датчик авар.давл. масла 2101 BAUTLER | C21: 2 | D21: 50 | E21: 100
A22: 23 | B22: Детское автомобильное кресло КРОХА бескаркасное светло-серый | C22: 1 | D22: 552 | E22: 552
A23: 17 | B23: Замок двери внутренний 2108 передний левый | C23: 1 | D23: 144 | E23: 144
A24: 17 | B24: Замок зажигания 2110 ДААЗ н/о | C24: 1 | D24: 684 | E24: 684
A25: 5 | B25: Клапана 2101 (8шт) Самара | C25: 1 | D25: 1110 | E25: 1110
A26: 7 | B26: Ключ комбинированный 32х32 АВТОТОРГ 4032 | C26: 1 | D26: 199 | E26: 199
A27: 6 | B27: Ключ комбинированный 32х32 МАСТЕР КЛЮЧ 512032 | C27: 1 | D27: 333 | E27: 333
A28: 6 | B28: Ключ-головка 11мм 1/2 короткая шестигранная FORCE 54511 | C28: 1 | D28: 69 | E28: 69
A29: 7 | B29: Ключ-переходник 3/8(п) на 1/2(м) FORCE 80934 | C29: 2 | D29: 60 | E29: 120
A30: 17 | B30: Колодки 2121 перед.торм. АВТОВАЗ | C30: 1 | D30: 229 | E30: 229
A31: 16 | B31: Колпачки маслоотраж. 2101 ROSTECO (8 шт) | C31: 1 | D31: 211 | E31: 211
A32: 17 | B32: Колпачки маслоотраж. 2101 АВТОВАЗ (8 шт) | C32: 1 | D32: 122 | E32: 122
A33: 2 | B33: Крышка масл.горловины 2101 ЕВРОДЕТАЛЬ | C33: 2 | D33: 36 | E33: 72
A34: 2 | B34: Крышка масл.горловины 2123 ВИС | C34: 1 | D34: 45 | E34: 45
A35: 2 | B35: Крышка масл.горловины ГАЗ дв.402 ЕВРОДЕТАЛЬ | C35: 1 | D35: 33 | E35: 33
A36: 22 | B36: Крышка распред.зажигания 2101 СОАТЭ 038 | C36: 1 | D36: 126 | E36: 126
A37: 5 | B37: Крышка распред.зажигания 2101 ЦИТРОН 329 | C37: 1 | D37: 127 | E37: 127
A38: 17 | B38: Опора шаровая 1118 БЗАК пыльник | C38: 2 | D38: 245 | E38: 490
A39: 17 | B39: Опора шаровая 2101 верх. АВТОВАЗ с крепежом | C39: 2 | D39: 289 | E39: 578
A40: 17 | B40: Опора шаровая 2101 нижн. АВТОВАЗ с крепежом | C40: 2 | D40: 289 | E40: 578
A41: 17 | B41: Опора шаровая 2121 (2в+2н) БЗАК | C41: 1 | D41: 811 | E41: 811
A42: 12 | B42: Патрубки 2121 отопителя ВПТ (2 шт) | C42: 1 | D42: 50 | E42: =D42*C42 -> 50
A43: 12 | B43: Патрубки 2121 радиатора ВПТ (4 шт) | C43: 1 | D43: 245 | E43: 245
A44: 2 | B44: Подш.генератора 2110 СПЗ (6202+6303) | C44: 1 | D44: 142 | E44: 142
A45: 5 | B45: Прикуриватель 2106 Тольятти в сборе | C45: 3 | D45: 115 | E45: 345
A46: 16 | B46: Прикуриватель 2110 САЛЮТ-АВТООПТ в сборе | C46: 3 | D46: 149 | E46: 447
A47: 18 | B47: Прокладки 2101 двигателя (76,0) ВАТИ-Эконом полн.набор | C47: 1 | D47: 204 | E47: 204
A48: 18 | B48: Прокладки 2101 двигателя (79,0) ВАТИ-Эконом полн.набор | C48: 1 | D48: 204 | E48: 204
A49: 16 | B49: Радиатор 2110 отопит.алюм. LUZAR 0110 | C49: 1 | D49: 589 | E49: 589
A50: 6 | B50: Реле 495.3747 поворота 2108 ЭМИ 644.3777 | C50: 5 | D50: 57 | E50: 285
A51: 2 | B51: Реле контроля целостности ламп 2110 | C51: 3 | D51: 128 | E51: 384
A52: 16 | B52: Ремкомплект ГРМ 2190 (ремень,ролик) TRIALLI | C52: 1 | D52: 1204 | E52: 1204
A53: 4 | B53: Ремкомплект карбюратора 2107 ЧААЗ | C53: 1 | D53: 83 | E53: 83
A54: 5 | B54: Ремкомплект карбюратора 2107-20 ПЕКАР | C54: 1 | D54: 274 | E54: 274
A55: 16 | B55: Решетка радиатора 2107 Тольятти хром | C55: 1 | D55: 264 | E55: 264
A56: 5 | B56: Ролик 2170 натяжения ремня AT 6120-270В | C56: 1 | D56: 486 | E56: 486
A57: 16 | B57: Сальник 2110 привода левый БРТ 35*57*9 | C57: 5 | D57: 34 | E57: 170
A58: 16 | B58: Сальник 2110 привода правый БРТ 35*57*9 | C58: 5 | D58: 34 | E58: 170
A59: 16 | B59: Сальник 2110 привода универс. ROSTECO | C59: 3 | D59: 59 | E59: 177
A60: 17 | B60: Свеча зажигания 2110 1,5 V16 АВТОВАЗ (4 шт) АУ17ДВРМ | C60: 2 | D60: 204 | E60: 408
A61: 5 | B61: Свеча зажигания 2110 1,5 V8 NGK (4 шт) BPR6ES V-LINE-13 | C61: 2 | D61: 357 | E61: 714
A62: 6 | B62: Съемник амортизатора 2108 Барнаул столбик | C62: 2 | D62: 89 | E62: 178
A63: 7 | B63: Съемник стопор.кольца 200мм на сжатие прямой TOYA 43031 | C63: 1 | D63: 186 | E63: 186
A64: 15 | B64: Ходовые огни KS-008-2 | C64: 1 | D64: 182 | E64: 182
A65: 17 | B65: Цилиндр 2108 главный торм. АВТОВАЗ | C65: 1 | D65: 656 | E65: 656
A66: 5 | B66: Шрус 2108 наружный WEBER | C66: 2 | D66: 719 | E66: 1438
A67: 7 | B67: Щетка стеклоочистителя 50см ALCA 110 | C67: 8 | D67: 102 | E67: 816

Sheet кор
A1: 0 | B1: Товарный чек № от
B2: Отпущен товар за наличный расчет на сумму: | D2: =SUM(E:E) -> 0
B3: Скидка составила: | D3: =ROUNDUP(D2*A1/100,0) -> 0
B4: Стоймость доставки: | D4: 0
B5: Предоплата: | D5: 0
B6: Задолженность: | D6: 0
B7: Итого к оплате: | D7: =D2+D4+D6-D3-D5 -> 0
B8: Количество мест:
A9: № | B9: Наименование | C9: кол | D9: цена | E9: сумма

Sheet мст
A1: 0 | B1: Товарный чек № от
B2: Отпущен товар за наличный расчет на сумму: | D2: =SUM(E:E) -> 52883
B3: Скидка составила: | D3: =ROUNDUP(D2*A1/100,0) -> 0
B4: Стоймость доставки: | D4: 0
B5: Предоплата: | D5: 0
B6: Задолженность: | D6: 0
B7: Итого к оплате: | D7: =D2+D4+D6-D3-D5 -> 52883
B8: Количество мест:
A9: № | B9: Наименование | C9: кол | D9: цена | E9: сумма
A10: 1 | B10: А/лампа H4 12-60/55-43+30% PHILIPS Premium 12342 | C10: 10 | D10: 112 | E10: =D10*C10 -> 1120
A11: 6 | B11: Ветровик 2108 AZARD накладной | C11: 1 | D11: 270 | E11: 270
A12: 16 | B12: Генератор 2110 СТАРТВОЛЬТ (120А) LG 0110 | C12: 1 | D12: 3629 | E12: 3629
A13: 2 | B13: Колодки 2108 перед.торм. ЕВРОДЕТАЛЬ | C13: 5 | D13: 198 | E13: 990
A14: 16 | B14: Крышка расширит.бачка 2108 LUZAR 0108 | C14: 50 | D14: 76 | E14: 3800
A15: 17 | B15: Наконечник 2110 рул.тяги БЗАК (2 шт) | C15: 1 | D15: 526 | E15: 526
A16: 16 | B16: Насос водяной 2170 LUZAR 0127 | C16: 2 | D16: 703 | E16: 1406
A17: 2 | B17: Насос омывателя 2110 FENOX 52 005 О7 | C17: 20 | D17: 117 | E17: 2340
A18: 16 | B18: Патрубки 2105 радиатора (алюминий) LUZAR (4 шт) 0105 | C18: 1 | D18: 342 | E18: 342
A19: 16 | B19: Патрубки 2108 радиатора LUZAR (4 шт) 0108 | C19: 3 | D19: 371 | E19: 1113
A20: 16 | B20: Радиатор 2101 отопит.алюм. LUZAR 0101 | C20: 2 | D20: 542 | E20: 1084
A21: 16 | B21: Радиатор 2106 отопит.алюм. LUZAR 0106 | C21: 2 | D21: 580 | E21: 1160
A22: 16 | B22: Радиатор 2170 охлажд.алюм. LUZAR 0127 | C22: 1 | D22: 1463 | E22: 1463
A23: 2 | B23: Реле втягивающее 2101 н/о ELDIX РДС | C23: 1 | D23: 549 | E23: 549
A24: 2 | B24: Реле втягивающее 2101 с/о ELDIX РС | C24: 1 | D24: 529 | E24: 529
A25: 2 | B25: Реле втягивающее 2108 ELDIX РДС | C25: 1 | D25: 549 | E25: 549
A26: 2 | B26: Реле втягивающее 2110 ELDIX | C26: 1 | D26: 586 | E26: 586
A27: 16 | B27: Ролик 2108 натяжения ремня TRIALLI | C27: 3 | D27: 329 | E27: 987
A28: 2 | B28: Спойлер капота (мухобойка) 2107 AZARD | C28: 2 | D28: 321 | E28: 642
A29: 16 | B29: Сцепление 2101 TRIALLI в сборе | C29: 5 | D29: 1843 | E29: 9215
A30: 16 | B30: Сцепление 2108 TRIALLI в сборе | C30: 5 | D30: 1815 | E30: 9075
A31: 16 | B31: Сцепление 2110 TRIALLI в сборе | C31: 5 | D31: 1880 | E31: 9400
A32: 2 | B32: Эл.двигат.вентилят.2106/08 LUZAR 0103 | C32: 2 | D32: 1054 | E32: 2108

Sheet тищ
A1: 0 | B1: Товарный чек № от
B2: Отпущен товар за наличный расчет на сумму: | D2: =SUM(E:E) -> 0
B3: Скидка составила: | D3: =ROUNDUP(D2*A1/100,0) -> 0
B4: Стоймость доставки: | D4: 0
B5: Предоплата: | D5: 0
B6: Задолженность: | D6: 0
B7: Итого к оплате: | D7: =D2+D4+D6-D3-D5 -> 0
B8: Количество мест:
A9: № | B9: Наименование | C9: кол | D9: цена | E9: сумма

Sheet гор
A1: 0 | B1: Товарный чек № от
B2: Отпущен товар за наличный расчет на сумму: | D2: =SUM(E:E) -> 0
B3: Скидка составила: | D3: =ROUNDUP(D2*A1/100,0) -> 0
B4: Стоймость доставки: | D4: 0
B5: Предоплата: | D5: 0
B6: Задолженность: | D6: 0
B7: Итого к оплате: | D7: =D2+D4+D6-D3-D5 -> 0
B8: Количество мест:
A9: № | B9: Наименование | C9: кол | D9: цена | E9: сумма

Sheet вас
A1: 0 | B1: Товарный чек № от
B2: Отпущен товар за наличный расчет на сумму: | D2: =SUM(E:E) -> 26229
B3: Скидка составила: | D3: =ROUNDUP(D2*A1/100,0) -> 0
B4: Стоймость доставки: | D4: 0
B5: Предоплата: | D5: 0
B6: Задолженность: | D6: 0
B7: Итого к оплате: | D7: =D2+D4+D6-D3-D5 -> 26229
B8: Количество мест:
A9: № | B9: Наименование | C9: кол | D9: цена | E9: сумма
A10: 6 | B10: ..СЧЕТ-Зарядное ус-во ЗУ-75М4 ОБОРОНПРИБОР 12В 6А | C10: 1 | D10: 1242 | E10: =D10*C10 -> 1242
A11: 22 | B11: Вилка КПП 2108 3-4 передачи Тольятти | C11: 3 | D11: 168 | E11: 504
A12: 2 | B12: Вилка сцепления 2110 АВТОВАЗ | C12: 2 | D12: 301 | E12: 602
A13: 6 | B13: Выключатель аварийной сигнализации 2115 | C13: 1 | D13: 100 | E13: 100
A14: 17 | B14: Диск сцепл.ведомый 2110 ВИС | C14: 1 | D14: 733 | E14: 733
A15: 5 | B15: Диск сцепл.ведомый 2110 НАЧАЛО | C15: 1 | D15: 495 | E15: 495
A16: 16 | B16: Зеркало 2110 наружнее левое РЕГИОН а/блик | C16: 1 | D16: 352 | E16: 352
A17: 17 | B17: Зеркало 2110 наружнее правое ДААЗ | C17: 1 | D17: 515 | E17: 515
A18: 16 | B18: Зеркало 2110 наружнее правое РЕГИОН а/блик | C18: 1 | D18: 352 | E18: 352
A19: 16 | B19: Клапана 2101 (8шт) SM | C19: 1 | D19: 990 | E19: 990
A20: 5 | B20: Колодки 2101 задн.торм. НАЧАЛО | C20: 3 | D20: 363 | E20: 1089
A21: 5 | B21: Колодки 2108 задн.торм. НАЧАЛО | C21: 5 | D21: 327 | E21: 1635
A22: 17 | B22: Насос водяной 2123 АВТОВАЗ | C22: 1 | D22: 757 | E22: 757
A23: 5 | B23: Насос водяной 2123 КААЗ | C23: 1 | D23: 558 | E23: 558
A24: 16 | B24: Насос водяной 2123 ТЗА | C24: 1 | D24: 806 | E24: 806
A25: 5 | B25: Провод в/в 21214 BRISK силикон BR013S | C25: 1 | D25: 363 | E25: 363
A26: 16 | B26: Провод в/в 21214 SLON силикон | C26: 1 | D26: 578 | E26: 578
A27: 16 | B27: Прокладка 2108 крышки клапанов БРТ | C27: 10 | D27: 72 | E27: 720
A28: 5 | B28: Пружина подвески 2102 ОРЕЛ задн. (2 шт) | C28: 1 | D28: 644 | E28: 644
A29: 2 | B29: Ремень генератора ГАЗ дв.406 с ГУР БРТ 6PK1370 | C29: 1 | D29: 364 | E29: 364
A30: 16 | B30: Ремень генератора ГАЗ-3302 дв.УЗАМ БРТ зубч. 900 | C30: 2 | D30: 112 | E30: 224
A31: 4 | B31: Сальник 2101 редуктора задн.моста БРТ 35,8*68*12 | C31: 10 | D31: 23 | E31: 230
A32: 6 | B32: Сателлиты в сборе 2108 АВТОВАЗ | C32: 1 | D32: 896 | E32: 896
A33: 19 | B33: Смазка WD-40 420 мл | C33: 2 | D33: 336 | E33: 672
A34: 2 | B34: Термостат 2101 FENOX TS 001 O7 | C34: 2 | D34: 277 | E34: 554
A35: 5 | B35: Термостат 2101 METAL INCAR пластмас. | C35: 2 | D35: 299 | E35: 598
A36: 8 | B36: Термостат 2108 BAUTLER | C36: 2 | D36: 298 | E36: 596
A37: 2 | B37: Цилиндр 1111 передний левый FENOX СТ4501 ЗЧ С2 | C37: 1 | D37: 1361 | E37: 1361
A38: 2 | B38: Цилиндр 2101 перед.внут.лев. FENOX X4816 С1 в упак. | C38: 1 | D38: 366 | E38: 366
A39: 2 | B39: Цилиндр 2101 перед.внут.прав. БЕЛМАГ | C39: 1 | D39: 364 | E39: 364
A40: 5 | B40: Цилиндр 2105 задн.торм. БЗАК | C40: 10 | D40: 225 | E40: 2250
A41: 17 | B41: Цилиндр 2108 передний левый FENOX X4810 С1 в упак. | C41: 2 | D41: 574 | E41: 1148
A42: 17 | B42: Цилиндр 2121 передний левый FENOX X3022 С1/С2 | C42: 1 | D42: 1074 | E42: 1074
A43: 2 | B43: Цилиндр 2123 рабочий сцепл. АВТОАГРЕГАТ | C43: 1 | D43: 576 | E43: 576
A44: 2 | B44: Цилиндр 2123 рабочий сцепл. БЕЛМАГ | C44: 1 | D44: 577 | E44: 577
A45: 2 | B45: Цилиндр ГАЗ-3302 задн.торм. FENOX K3210 С3 в упак. | C45: 4 | D45: 336 | E45: 1344

Sheet ги
A1: 0 | B1: Товарный чек № от
B2: Отпущен товар за наличный расчет на сумму: | D2: =SUM(E:E) -> 17650
B3: Скидка составила: | D3: =ROUNDUP(D2*A1/100,0) -> 0
B4: Стоймость доставки: | D4: 0
B5: Предоплата: | D5: 0
B6: Задолженность: | D6: 0
B7: Итого к оплате: | D7: =D2+D4+D6-D3-D5 -> 17650
B8: Количество мест:
A9: № | B9: Наименование | C9: кол | D9: цена | E9: сумма
A10: 15 | B10: А/лампа H1 12-100 МАЯК 52150 (уп-10) | C10: 10 | D10: 43 | E10: =D10*C10 -> 430
A11: 5 | B11: Антифриз 1л зеленый Дзержинск | C11: 5 | D11: 70 | E11: 350
A12: 19 | B12: Антифриз 1л красный AGA | C12: 4 | D12: 135 | E12: 540
A13: 19 | B13: Антифриз 1л красный Дзержинск | C13: 10 | D13: 85 | E13: 850
A14: 2 | B14: Герметик-прокладка АВТОСИЛ 65г | C14: 10 | D14: 30 | E14: 300
A15: 12 | B15: Глушитель 2115 Новгород | C15: 1 | D15: 670 | E15: 670
A16: 15 | B16: Жидкость омывателя АСТРОХИМ -50°С 1л концетрат | C16: 2 | D16: 148 | E16: 296
A17: 19 | B17: Жидкость омывателя СИБИРЬ 5л незамерзающая | C17: 4 | D17: 95 | E17: 380
A18: 4 | B18: Заглушка пола 2101 большая БРТ | C18: 10 | D18: 8 | E18: 80
A19: 4 | B19: Заглушка пола 2108 большая БРТ | C19: 10 | D19: 10 | E19: 100
A20: 11 | B20: Зажим средний (крокодильчики) 2шт | C20: 10 | D20: 20 | E20: 200
A21: 5 | B21: Замок зажигания 2101 РЕКАРДО | C21: 1 | D21: 276 | E21: 276
A22: 11 | B22: Изолента белая Россия | C22: 2 | D22: 10 | E22: 20
A23: 11 | B23: Изолента красная Россия | C23: 2 | D23: 10 | E23: 20
A24: 19 | B24: Изолента черная 19мм*20м TERMINATOR | C24: 3 | D24: 47 | E24: 141
A25: 11 | B25: Изолента черная Россия | C25: 2 | D25: 10 | E25: 20
A26: 19 | B26: Клей холод. сварка АЛМАЗ авто-30гр. | C26: 10 | D26: 28 | E26: 280
A27: 15 | B27: Клей холод. сварка АЛМАЗ универсальный-30гр. | C27: 5 | D27: 29 | E27: 145
A28: 19 | B28: Ключ свечной 16 трубка ЕРМАК 766-126 | C28: 5 | D28: 79 | E28: 395
A29: 18 | B29: Колодки 2108 задн.торм. DAFMI ДА140 | C29: 1 | D29: 405 | E29: 405
A30: 5 | B30: Колодки 2108 задн.торм. НАЧАЛО | C30: 1 | D30: 327 | E30: 327
A31: 19 | B31: Масло мотор.п/синт. 10W-40 SHELL Helix 1л | C31: 3 | D31: 260 | E31: 780
A32: 19 | B32: Масло мотор.п/синт. 10W-40 SHELL Helix 4л | C32: 1 | D32: 790 | E32: 790
A33: 19 | B33: Масло мотор.синт. 5W-40 SHELL Helix 4л | C33: 1 | D33: 1200 | E33: 1200
A34: 5 | B34: Освежитель воздуха на дефлектор ALIBI SENSO лимон | C34: 1 | D34: 76 | E34: 76
A35: 19 | B35: Освежитель воздуха подвесной AREON гелевый клубника | C35: 1 | D35: 50 | E35: 50
A36: 19 | B36: Освежитель воздуха подвесной AREON гелевый персик | C36: 2 | D36: 50 | E36: 100
A37: 19 | B37: Освежитель воздуха подвесной AREON гелевый черный лед | C37: 2 | D37: 50 | E37: 100
A38: 15 | B38: Освежитель воздуха подвесной SKYWAY дер.бочонок арбуз | C38: 1 | D38: 88 | E38: 88
A39: 15 | B39: Освежитель воздуха подвесной SKYWAY дер.бочонок бабл гам | C39: 1 | D39: 88 | E39: 88
A40: 6 | B40: Освежитель воздуха-подвеска ФУТБОЛЬНЫЙ МЯЧ океанский бриз | C40: 1 | D40: 91 | E40: 91
A41: 15 | B41: Предохранители 2108 флажковые AIRLINE AFU-S-03 | C41: 15 | D41: 30 | E41: 450
A42: 4 | B42: Прокладка 2108 масл.картера САМОРИМ пробка | C42: 3 | D42: 89 | E42: 267
A43: 16 | B43: Ремень генератора 2101 LUZAR зубч. 944 | C43: 4 | D43: 86 | E43: 344
A44: 5 | B44: Ролик 2108 натяжения ремня AT железный 830900S | C44: 2 | D44: 282 | E44: 564
A45: 17 | B45: Свеча зажигания 2108 FENOX (4 шт) S17 131.1 | C45: 1 | D45: 179 | E45: 179
A46: 17 | B46: Свеча зажигания 2108 АВТОВАЗ (4 шт) А17ДВРМ | C46: 1 | D46: 161 | E46: 161
A47: 19 | B47: Свеча зажигания 2112 1,6 V16 BRISK (4 шт) SILVER DR15YS | C47: 2 | D47: 290 | E47: 580
A48: 19 | B48: Тосол 10л Дзержинск | C48: 2 | D48: 482 | E48: 964
A49: 19 | B49: Тосол 3л Дзержинск | C49: 4 | D49: 183 | E49: 732
A50: 19 | B50: Тосол 5л Дзержинск | C50: 3 | D50: 255 | E50: 765
A51: 16 | B51: Трос газа 2108 РЕКАРДО | C51: 3 | D51: 84 | E51: 252
A52: 5 | B52: Фильтр топливный 2101 AT | C52: 10 | D52: 22 | E52: 220
A53: 16 | B53: Фильтр топливный 2110 САЛЮТ | C53: 3 | D53: 158 | E53: 474
A54: 5 | B54: Шрус 2108 наружный WEBER | C54: 2 | D54: 719 | E54: 1438
A55: 7 | B55: Щетка стеклоочистителя 48см ALCA 109 | C55: 4 | D55: 102 | E55: 408
A56: 19 | B56: Электролит 1,28 1,5л | C56: 6 | D56: 35 | E56: 210
A57: 6 | B57: Эмблема облицовки радиатора 2110 | C57: 3 | D57: 18 | E57: 54

Sheet сел
A1: 0 | B1: Товарный чек № от
B2: Отпущен товар за наличный расчет на сумму: | D2: =SUM(E:E) -> 25511
B3: Скидка составила: | D3: =ROUNDUP(D2*A1/100,0) -> 0
B4: Стоймость доставки: | D4: 0
B5: Предоплата: | D5: 0
B6: Задолженность: | D6: 0
B7: Итого к оплате: | D7: =D2+D4+D6-D3-D5 -> 25511
B8: Количество мест:
A9: № | B9: Наименование | C9: кол | D9: цена | E9: сумма
A10: 6 | B10: ..СЧЕТ-Адаптер ремня безопасности APV детский (винил) красный | C10: 1 | D10: 137 | E10: =D10*C10 -> 137
A11: 6 | B11: ..СЧЕТ-Адаптер ремня безопасности APV детский (оксфорд) черный | C11: 1 | D11: 95 | E11: 95
A12: 6 | B12: ..СЧЕТ-Антирадар AIRLINE ARD-N-03 | C12: 1 | D12: 1072 | E12: 1072
A13: 6 | B13: ..СЧЕТ-Оплетка руля M кожа SENATOR Texas черная | C13: 1 | D13: 542 | E13: 542
A14: 6 | B14: .РЕАЛ-Антирадар SQ 220 | C14: 1 | D14: 1316 | E14: 1316
A15: 6 | B15: .РЕАЛ-Компрессор ZORK 30л/мин без упак. | C15: 1 | D15: 521 | E15: 521
A16: 1 | B16: А/лампа H1 12-55 ЧЕМПИОН | C16: 20 | D16: 29 | E16: 580
A17: 1 | B17: А/лампа H3 12-55 ЧЕМПИОН | C17: 20 | D17: 29 | E17: 580
A18: 1 | B18: А/лампа H4 12-60/55-43 ЧЕМПИОН | C18: 10 | D18: 56 | E18: 560
A19: 1 | B19: А/лампа H7 12-55 ЧЕМПИОН | C19: 20 | D19: 57 | E19: 1140
A20: 16 | B20: Вакуумный усилитель 2108 АВТО-ГРАД | C20: 1 | D20: 1029 | E20: 1029
A21: 12 | B21: Глушитель 2101 Новгород | C21: 2 | D21: 566 | E21: 1132
A22: 16 | B22: Замок зажигания 2101 Тольятти | C22: 3 | D22: 165 | E22: 495
A23: 2 | B23: Замок зажигания 2108 ДААЗ с/о | C23: 1 | D23: 550 | E23: 550
A24: 2 | B24: Накладка бампера 2106 (2 шт) | C24: 5 | D24: 25 | E24: 125
A25: 5 | B25: Насос водяной 2112 под ТЗА | C25: 1 | D25: 564 | E25: 564
A26: 16 | B26: Подш.ступ. 2108 задн. TRIALLI | C26: 5 | D26: 348 | E26: 1740
A27: 16 | B27: Радиатор 2105-07 охлажд.алюм.универс. LUZAR 01070 | C27: 1 | D27: 1292 | E27: 1292
A28: 2 | B28: Радиатор 2106 отопит.алюм. FENOX RO 0003 O7 | C28: 1 | D28: 504 | E28: 504
A29: 16 | B29: Радиатор 2110 охлажд.алюм.универс. LUZAR 01120 | C29: 1 | D29: 1292 | E29: 1292
A30: 16 | B30: Регулятор холостого хода 21214 КЗТА | C30: 1 | D30: 473 | E30: 473
A31: 17 | B31: Резонатор 2101 АВТОВАЗ | C31: 2 | D31: 434 | E31: 868
A32: 9 | B32: Ремень ГРМ 2108 LYNX 111CL19 | C32: 5 | D32: 209 | E32: 1045
A33: 5 | B33: Ролик 2108 натяжения ремня AT железный 830900S | C33: 2 | D33: 282 | E33: 564
A34: 6 | B34: Ролик 2108 натяжения ремня LGR | C34: 2 | D34: 253 | E34: 506
A35: 8 | B35: Салфетка-замша большая KANEBO | C35: 5 | D35: 114 | E35: 570
A36: 5 | B36: Салфетка-замша малая KANEBO | C36: 5 | D36: 58 | E36: 290
A37: 19 | B37: Свеча зажигания 2101 FINWHALE (4 шт) F501 | C37: 3 | D37: 193 | E37: 579
A38: 2 | B38: Свеча зажигания 2101 ТРЕК (4 шт) А17ДВМ | C38: 1 | D38: 163 | E38: 163
A39: 16 | B39: Стартер 2108 СТАРТВОЛЬТ редукторный LSt 0115 | C39: 1 | D39: 2565 | E39: 2565
A40: 5 | B40: Трос буксировочный 5т веревка Барнаул с крюками | C40: 2 | D40: 167 | E40: 334
A41: 7 | B41: Трос буксировочный 5т лента Барнаул с крюками | C41: 2 | D41: 134 | E41: 268
A42: 2 | B42: Фильтр масляный 2105 БЕЛМАГ | C42: 5 | D42: 96 | E42: 480
A43: 8 | B43: Фильтр масляный 2108 МАNN W914/2 | C43: 5 | D43: 165 | E43: 825
A44: 19 | B44: Фильтр масляный 2108 САЛЮТ | C44: 2 | D44: 120 | E44: 240
A45: 5 | B45: Фильтр масляный 2108 ФОРВАРД | C45: 5 | D45: 95 | E45: 475

Sheet мск
A1: 0 | B1: Товарный чек № от
B2: Отпущен товар за наличный расчет на сумму: | D2: =SUM(E:E) -> 0
B3: Скидка составила: | D3: =ROUNDUP(D2*A1/100,0) -> 0
B4: Стоймость доставки: | D4: 0
B5: Предоплата: | D5: 0
B6: Задолженность: | D6: 0
B7: Итого к оплате: | D7: =D2+D4+D6-D3-D5 -> 0
B8: Количество мест:
A9: № | B9: Наименование | C9: кол | D9: цена | E9: сумма

Sheet шад
A1: 0 | B1: Товарный чек № от
B2: Отпущен товар за наличный расчет на сумму: | D2: =SUM(E:E) -> 0
B3: Скидка составила: | D3: =ROUNDUP(D2*A1/100,0) -> 0
B4: Стоймость доставки: | D4: 0
B5: Предоплата: | D5: 0
B6: Задолженность: | D6: 0
B7: Итого к оплате: | D7: =D2+D4+D6-D3-D5 -> 0
B8: Количество мест:
A9: № | B9: Наименование | C9: кол | D9: цена | E9: сумма
